fUST/lending_fUST_20260105
["ID","MTS","AMOUNT","RATE_DAILY","PERIOD"]
[400440169,1767555032573,-300.0,9.694e-05,2]
[400440171,1767555032583,-300.0,9.694e-05,2]
[400440173,1767555032592,-300.0,9.694e-05,2]
[400440174,1767555032601,-150957.55092373,9.695e-05,2]
[400440175,1767555032611,-50000.0,9.793e-05,2]
[400440176,1767555032621,-500.0,9.793e-05,2]
[400440177,1767555032630,-500.0,9.793e-05,2]
[400440178,1767555032640,-500.0,9.793e-05,2]
[400440180,1767555032649,-500.0,9.793e-05,2]
[400440182,1767555032658,-500.0,9.793e-05,2]
[400440184,1767555032668,-413.28613167,9.793e-05,2]
[400440186,1767555032677,-500.0,9.793e-05,2]
[400440187,1767555032686,-500.0,9.793e-05,2]
[400440188,1767555032695,-500.0,9.793e-05,2]
[400440189,1767555032707,-500.0,9.793e-05,2]
[400440191,1767555032716,-500.0,9.793e-05,2]
[400440192,1767555032725,-391.68424295,9.793e-05,2]
[400440194,1767555032735,-500.0,9.793e-05,2]
[400440196,1767555032744,-500.0,9.793e-05,2]
[400440199,1767555032753,-274.67294901,9.793e-05,2]
[400440201,1767555032763,-500.0,9.793e-05,2]
[400440202,1767555032772,-500.0,9.793e-05,2]
[400440204,1767555032781,-500.0,9.793e-05,2]
[400440206,1767555032790,-500.0,9.793e-05,2]
[400440207,1767555032799,-500.0,9.793e-05,2]
[400440208,1767555032809,-500.0,9.793e-05,2]
[400440209,1767555032820,-500.0,9.793e-05,2]
[400440210,1767555032829,-500.0,9.793e-05,2]
[400440211,1767555032838,-500.0,9.793e-05,2]
[400440212,1767555032848,-500.0,9.793e-05,2]
[400440213,1767555032858,-500.0,9.793e-05,2]
[400440214,1767555032868,-500.0,9.793e-05,2]
[400440215,1767555032877,-500.0,9.793e-05,2]
[400440216,1767555032887,-473.92757147,9.793e-05,2]
[400440217,1767555032896,-500.0,9.793e-05,2]
[400440218,1767555032905,-500.0,9.793e-05,2]
[400440219,1767555032914,-500.0,9.793e-05,2]
[400440220,1767555032923,-500.0,9.793e-05,2]
[400440221,1767555032932,-420.58588671,9.793e-05,2]
[400440222,1767555032942,-500.0,9.793e-05,2]
[400440223,1767555032951,-200.30273308,9.793e-05,2]
[400440224,1767555032960,-500.0,9.793e-05,2]
[400440225,1767555032971,-500.0,9.793e-05,2]
[400440226,1767555032981,-500.0,9.793e-05,2]
[400440227,1767555032990,-500.0,9.793e-05,2]
[400440228,1767555032999,-500.0,9.793e-05,2]
[400440229,1767555033008,-500.0,9.793e-05,2]
[400440230,1767555033018,-500.0,9.793e-05,2]
[400440231,1767555033028,-500.0,9.793e-05,2]
[400440232,1767555033041,-500.0,9.793e-05,2]
[400440233,1767555033051,-361.02059416,9.793e-05,2]
[400440234,1767555033060,-500.0,9.793e-05,2]
[400440235,1767555033070,-302.71441592,9.793e-05,2]
[400440236,1767555033081,-500.0,9.793e-05,2]
[400440237,1767555033090,-1200.0,9.793e-05,2]
[400440238,1767555033100,-500.0,9.795e-05,2]
[400440239,1767555033112,-290.82034444,9.797e-05,2]
[400440240,1767555033122,-1979.39617456,9.836e-05,2]
[400440241,1767555033131,-1687.04848832,9.898e-05,2]
[400440242,1767555033141,-206.076,9.9e-05,2]
[400440243,1767555033150,-300.0,9.995e-05,2]
[400440244,1767555033159,-300.0,9.995e-05,2]
[400440245,1767555033169,-300.0,9.995e-05,2]
[400440246,1767555033178,-300.0,9.995e-05,2]
[400440247,1767555033187,-300.0,9.995e-05,2]
[400440248,1767555033197,-300.0,9.995e-05,2]
[400440249,1767555033206,-300.0,9.995e-05,2]
[400440250,1767555033215,-300.0,9.995e-05,2]
[400440251,1767555033224,-300.0,9.995e-05,2]
[400440252,1767555033234,-300.0,9.995e-05,2]
[400440253,1767555033243,-300.0,9.995e-05,2]
[400440254,1767555033252,-300.0,9.995e-05,2]
[400440255,1767555033261,-300.0,9.995e-05,2]
[400440256,1767555033271,-300.0,9.995e-05,2]
[400440257,1767555033280,-300.0,9.995e-05,2]
[400440258,1767555033289,-600.0,9.995e-05,2]
[400440259,1767555033299,-187.13836179,0.0001,2]
[400440260,1767555033308,-201.93286099,0.00010019,2]
[400440261,1767555033318,-1112.37940959,0.00010019,2]
[400440262,1767555033327,-250.0,0.00010019,2]
[400440263,1767555033337,-250.0,0.00010019,2]
[400440264,1767555033346,-250.0,0.00010019,2]
[400440265,1767555033356,-553.64373807,0.00010019,2]
[400440266,1767555033366,-250.0,0.00010019,2]
[400440267,1767555033375,-250.0,0.00010019,2]
[400440268,1767555033384,-250.0,0.00010019,2]
[400440269,1767555033394,-250.0,0.00010019,2]
[400440270,1767555033404,-250.0,0.00010019,2]
[400440271,1767555033413,-250.0,0.00010019,2]
[400440272,1767555033423,-250.0,0.00010019,2]
[400440273,1767555033432,-250.0,0.00010019,2]
[400440274,1767555033441,-250.0,0.00010019,2]
[400440275,1767555033451,-564.51499178,0.00010069,2]
[400440276,1767555033460,-300.0,0.00010559,2]
[400440277,1767555033470,-1200.0,0.00010559,2]
[400440278,1767555033479,-209.40437684,0.00010567,2]
[400440279,1767555033488,-574.12855637,0.00010567,2]
[400440280,1767555033499,-420.0,0.00010663,2]
[400440281,1767555033508,-420.0,0.00010663,2]
[400440282,1767555033518,-1979.39617452,0.00010702,2]
[400440283,1767555033665,-1200.0,0.00010772,2]
[400440284,1767555033720,-813.33397855,0.00010794,2]
[400440285,1767555033730,-981.34877005,0.00010804,2]
[400440286,1767555033739,-1815.96330741,0.00010846,2]
[400440287,1767555033749,-500.0,0.00010959,2]
[400440288,1767555033758,-500.0,0.00010959,2]
[400440289,1767555033768,-260.55680141,0.00010959,2]
[400440290,1767555033777,-720.0,0.00010994,2]
[400440291,1767555033787,-151.0,0.00011,2]
[400440292,1767555033796,-3224.09697664,0.00011111,2]
[400440293,1767555033806,-217.15233878,0.00011115,2]
[400440294,1767555033815,-595.37131296,0.00011115,2]
[400440295,1767555033824,-376.10983686,0.00011288,2]
[400440296,1767555033835,-365.75037752,0.00011647,2]
[400440297,1767555033844,-167.91398072,0.00011663,2]
[400440298,1767555033854,-704.00016692,0.00011663,2]
[400440299,1767555033864,-1979.39617452,0.00011668,2]
[400440300,1767555033873,-151.0,0.000117,2]
[400440301,1767555033883,-587.0,0.00011729,2]
[400440302,1767555033893,-184.0,0.00011729,2]
[400440303,1767555033903,-864.0,0.00012094,2]
[400440304,1767555033912,-866.62,0.00012329,2]
[400440305,1767555033921,-500.0,0.00012329,2]
[400440306,1767555033931,-500.0,0.00012329,2]
[400440307,1767555033941,-500.0,0.00012329,2]
[400440308,1767555033951,-500.0,0.00012329,2]
[400440309,1767555033960,-500.0,0.00012329,2]
[400440310,1767555033971,-441.63835774,0.00012329,2]
[400440311,1767555033980,-151.0,0.000124,2]
[400440312,1767555033991,-500.0,0.00012433,2]
[400440313,1767555034000,-250.0,0.00012433,2]
[400440314,1767555034011,-500.0,0.0001257,2]
[400440315,1767555034020,-4761.14546497,0.00012574,2]
[400440316,1767555034031,-1979.39617452,0.00012633,2]
[400440317,1767555034043,-500.0,0.00012707,2]
[400440318,1767555034054,-266.00072349,0.00012844,2]
[400440319,1767555034064,-79935.23963106,0.0001287,2]
[400440320,1767555034073,-4721.51801845,0.000129,2]
[400440321,1767555034083,-823.0,0.00012902,2]
[400440322,1767555034092,-151.0,0.000131,2]
[400440323,1767555034102,-157.1217886,0.00013119,2]
[400440324,1767555034113,-1041.66666667,0.00013137,2]
[400440325,1767555034122,-500.0,0.0001327,2]
[400440326,1767555034131,-478.35295088,0.00013273,2]
[400440327,1767555034141,-500.0,0.00013273,2]
[400440328,1767555034151,-500.0,0.00013273,2]
[400440329,1767555034160,-500.0,0.00013273,2]
[400440330,1767555034169,-500.0,0.00013273,2]
[400440331,1767555034179,-500.0,0.00013273,2]
[400440332,1767555034188,-556.87906344,0.00013273,2]
[400440333,1767555034199,-500.0,0.00013273,2]
[400440334,1767555034208,-500.0,0.00013273,2]
[400440335,1767555034218,-500.0,0.00013273,2]
[400440336,1767555034226,-179.25919058,0.00013273,2]
[400440337,1767555034236,-500.0,0.00013273,2]
[400440338,1767555034245,-500.0,0.00013273,2]
[400440339,1767555034255,-500.0,0.00013273,2]
[400440340,1767555034264,-500.0,0.00013273,2]
[400440341,1767555034273,-500.0,0.00013273,2]
[400440342,1767555034283,-207.18031116,0.00013273,2]
[400440343,1767555034293,-500.0,0.00013273,2]
[400440344,1767555034303,-500.0,0.00013273,2]
[400440345,1767555034313,-500.0,0.00013273,2]
[400440346,1767555034322,-500.0,0.00013273,2]
[400440347,1767555034331,-500.0,0.00013273,2]
[400440348,1767555034341,-500.35649474,0.00013273,2]
[400440349,1767555034350,-500.0,0.00013273,2]
[400440350,1767555034360,-1000.0,0.00013303,2]
[400440351,1767555034369,-4721.51801838,0.00013489,2]
[400440352,1767555034379,-167.78080906,0.00013525,2]
[400440353,1767555034388,-157.1217886,0.00013525,2]
[400440354,1767555034397,-1979.39617452,0.00013599,2]
[400440355,1767555034407,-421.54280798,0.00013647,2]
[400440356,1767555034417,-300.0,0.00013673,2]
[400440357,1767555034426,-580.76,0.00013698,2]
[400440358,1767555034436,-3510.39,0.00013698,2]
[400440359,1767555034446,-3510.39,0.00013698,2]
[400440360,1767555034455,-3510.39,0.00013698,2]
[400440361,1767555034465,-3510.39,0.00013698,2]
[400440362,1767555034474,-3510.39,0.00013698,2]
[400440363,1767555034483,-3510.39,0.00013698,2]
[400440364,1767555034493,-3510.39,0.00013698,2]
[400440365,1767555034502,-3510.39,0.00013698,2]
[400440366,1767555034511,-3510.39,0.00013698,2]
[400440367,1767555034520,-3510.39,0.00013698,2]
[400440368,1767555034529,-3510.39,0.00013698,2]
[400440369,1767555034538,-3510.39,0.00013698,2]
[400440370,1767555034547,-3510.39,0.00013698,2]
[400440371,1767555034557,-3510.39,0.00013698,2]
[400440372,1767555034566,-3510.39,0.00013698,2]
[400440373,1767555034576,-3510.39,0.00013698,2]
[400440374,1767555034586,-500.0,0.00013698,2]
[400440375,1767555034595,-500.0,0.00013698,2]
[400440376,1767555034604,-500.0,0.00013698,2]
[400440377,1767555034613,-500.0,0.00013698,2]
[400440378,1767555034623,-500.0,0.00013698,2]
[400440379,1767555034632,-500.0,0.00013698,2]
[400440380,1767555034642,-500.0,0.00013698,2]
[400440381,1767555034652,-500.0,0.00013698,2]
[400440382,1767555034661,-500.0,0.00013698,2]
[400440383,1767555034671,-500.0,0.00013698,2]
[400440384,1767555034680,-500.0,0.00013698,2]
[400440385,1767555034690,-500.0,0.00013698,2]
[400440386,1767555034699,-500.0,0.00013698,2]
[400440387,1767555034709,-424.84329368,0.00013698,2]
[400440388,1767555034718,-1008.030463,0.00013699,2]
[400440389,1767555034727,-190505.9787602,0.00013699,2]
[400440390,1767555034736,-500.0,0.00013699,2]
[400440391,1767555034746,-500.0,0.00013699,2]
[400440392,1767555034755,-500.0,0.00013699,2]
[400440393,1767555034764,-500.0,0.00013699,2]
[400440394,1767555034773,-500.0,0.00013699,2]
[400440395,1767555034782,-500.0,0.00013699,2]
[400440396,1767555034791,-500.0,0.00013699,2]
[400440397,1767555034800,-500.0,0.00013699,2]
[400440398,1767555034810,-500.0,0.00013699,2]
[400440399,1767555034819,-500.0,0.00013699,2]
[400440400,1767555034829,-500.0,0.00013699,2]
[400440401,1767555034838,-500.0,0.00013699,2]
[400440402,1767555034847,-500.0,0.00013699,2]
[400440403,1767555034856,-500.0,0.00013699,2]
[400440404,1767555034865,-500.0,0.00013699,2]
[400440405,1767555034875,-500.0,0.00013699,2]
[400440406,1767555034884,-500.0,0.00013699,2]
[400440407,1767555034894,-500.0,0.00013699,2]
[400440408,1767555034903,-500.0,0.00013699,2]
[400440409,1767555034913,-500.0,0.00013699,2]
[400440410,1767555034922,-500.0,0.00013699,2]
[400440411,1767555034932,-500.0,0.00013699,2]
[400440412,1767555034942,-500.0,0.00013699,2]
[400440413,1767555034952,-500.0,0.00013699,2]
[400440414,1767555034961,-500.0,0.00013699,2]
[400440415,1767555034971,-500.0,0.00013699,2]
[400440416,1767555034981,-500.17698717,0.00013699,2]
[400440417,1767555034991,-500.0,0.00013699,2]
[400440418,1767555035001,-500.0,0.00013699,2]
[400440419,1767555035010,-500.0,0.00013699,2]
[400440420,1767555035020,-500.0,0.00013699,2]
[400440421,1767555035030,-500.0,0.00013699,2]
[400440422,1767555035042,-500.0,0.00013699,2]
[400440423,1767555035053,-500.0,0.00013699,2]
[400440424,1767555035063,-500.0,0.00013699,2]
[400440425,1767555035073,-500.0,0.00013699,2]
[400440426,1767555035083,-500.0,0.00013699,2]
[400440427,1767555035093,-500.0,0.00013699,2]
[400440428,1767555035103,-500.0,0.00013699,2]
[400440429,1767555035114,-500.0,0.00013699,2]
[400440430,1767555035124,-500.0,0.00013699,2]
[400440431,1767555035133,-500.0,0.00013699,2]
[400440432,1767555035143,-151.0,0.00013699,2]
[400440433,1767555035152,-151.0,0.00013699,2]
[400440434,1767555035161,-151.04649,0.00013699,2]
[400440435,1767555035171,-151.0,0.000138,2]
[400440436,1767555035180,-3510.39,0.0001382,2]
[400440437,1767555035189,-1000.0,0.00013821,2]
[400440438,1767555035198,-1000.0,0.00013821,2]
[400440439,1767555035207,-1000.0,0.00013821,2]
[400440440,1767555035216,-1000.0,0.00013821,2]
[400440441,1767555035227,-1000.0,0.00013821,2]
[400440442,1767555035236,-1000.0,0.00013821,2]
[400440443,1767555035246,-861.95620737,0.00013821,2]
[400440444,1767555035256,-1000.0,0.00013821,2]
[400440445,1767555035266,-1000.0,0.00013821,2]
[400440446,1767555035275,-1000.0,0.00013821,2]
[400440447,1767555035285,-1000.0,0.00013821,2]
[400440448,1767555035296,-1000.0,0.00013821,2]
[400440449,1767555035305,-1000.0,0.00013821,2]
[400440450,1767555035315,-325.41046697,0.00013821,2]
[400440451,1767555035323,-1000.0,0.00013821,2]
[400440452,1767555035333,-1001.10079319,0.00013821,2]
[400440453,1767555035342,-1000.0,0.00013821,2]
[400440454,1767555035352,-1000.0,0.00013821,2]
[400440455,1767555035361,-167.78080906,0.00013944,2]
[400440456,1767555035370,-163.57061131,0.00013973,2]
[400440457,1767555035380,-3394.61885378,0.00014038,2]
[400440458,1767555035420,-2903.57509951,0.00014038,2]
[400440459,1767555035430,-1152.0,0.00014193,2]
[400440460,1767555035439,-600.0,0.00014221,2]
[400440461,1767555035448,-1000.0,0.00014247,2]
[400440462,1767555035458,-892.88170137,0.00014247,2]
[400440463,1767555035467,-156.44137789,0.00014247,2]
[400440464,1767555035476,-1000.0,0.00014247,2]
[400440465,1767555035485,-615.04672569,0.00014247,2]
[400440482,1767555038771,-1247.75,0.00013561,2]
[400440498,1767555040745,-2235.6750964,0.00013561,2]
[400440507,1767555040832,-1516.5749036,0.00013561,2]
[400440509,1767555040841,-151.0,0.00013699,2]
[400440511,1767555040851,-151.0,0.00013699,2]
[400440514,1767555040860,-151.0,0.00013699,2]
[400440516,1767555040870,-151.0,0.00013699,2]
[400440518,1767555040880,-151.0,0.00013699,2]
[400440520,1767555040889,-153.920047,0.00013699,2]
[400440522,1767555040898,-384.95327431,0.00014247,2]
[400440525,1767555040907,-1000.0,0.00014247,2]
[400440527,1767555040917,-1000.0,0.00014247,2]
[400440529,1767555040926,-1000.0,0.00014247,2]
[400440531,1767555040935,-1000.0,0.00014247,2]
[400440533,1767555040944,-1000.0,0.00014247,2]
[400440534,1767555040953,-888.07347701,0.00014247,2]
[400440536,1767555040963,-1000.0,0.00014247,2]
[400440539,1767555040973,-512.33435394,0.00014247,2]
[400440541,1767555040983,-541.12357041,0.00014247,2]
[400440543,1767555040992,-920.06493089,0.00014247,2]
[400440545,1767555041001,-802.52983156,0.00014247,2]
[400440960,1767555045059,-197.47016844,0.00014247,2]
[400440962,1767555045069,-1000.0,0.00014247,2]
[400440964,1767555045078,-761.97236355,0.00014247,2]
[400440966,1767555045090,-242.36050819,0.00014247,2]
[400440968,1767555045100,-1000.0,0.00014247,2]
[400440969,1767555045111,-322.3139372,0.00014247,2]
[400440971,1767555045121,-874.65404994,0.00014247,2]
[400440974,1767555045133,-125.34595006,0.00014247,2]
[400440976,1767555045142,-520.45931442,0.00014247,2]
[400440978,1767555045151,-794.74559763,0.00014247,2]
[400440980,1767555045163,-205.25440237,0.00014247,2]
[400440982,1767555045171,-1000.0,0.00014247,2]
[400440984,1767555045181,-131.09579763,0.00014247,2]
[400441031,1767555045849,-868.90420237,0.00014247,2]
[400441032,1767555045858,-2684.19130512,0.00014368,2]
[400441042,1767555047452,-826.19869488,0.00014368,2]
[400441043,1767555047462,-1000.0,0.00014368,2]
[400441044,1767555047471,-1000.0,0.00014368,2]
[400441045,1767555047481,-1000.0,0.00014368,2]
[400441046,1767555047492,-1500.0,0.00014368,2]
[400441047,1767555047502,-1500.0,0.00014368,2]
[400441048,1767555047511,-1000.0,0.00014368,2]
[400441049,1767555047522,-1500.0,0.00014368,2]
[400441050,1767555047533,-1500.0,0.00014368,2]
[400441051,1767555047543,-1500.0,0.00014368,2]
[400441052,1767555047553,-167.78080906,0.00014375,2]
[400441053,1767555047562,-1365.0,0.00014411,2]
[400441054,1767555047571,-628.0,0.00014411,2]
[400441055,1767555047580,-1862.0,0.00014411,2]
[400441056,1767555047590,-836.287,0.00014411,2]
[400441057,1767555047599,-194.729,0.00014411,2]
[400441058,1767555047609,-416.0,0.00014411,2]
[400441059,1767555047619,-151.0,0.000145,2]
[400441060,1767555047628,-10000.0,0.0001451,2]
[400441061,1767555047639,-1000.0,0.00014634,2]
[400441062,1767555047649,-244.0,0.00014634,2]
[400441063,1767555047658,-439.29349742,0.00014768,2]
[400441064,1767555047667,-3510.39,0.00014794,2]
[400441065,1767555047677,-1000.0,0.00014795,2]
[400441066,1767555047687,-1000.0,0.00014795,2]
[400441067,1767555047697,-487.91687995,0.00014795,2]
[400441068,1767555047710,-512.08312005,0.00014795,2]
[400441069,1767555047719,-1000.0,0.00014795,2]
[400441070,1767555047730,-1000.0,0.00014795,2]
[400441071,1767555047741,-1500.0,0.00014795,2]
[400441072,1767555047751,-1500.0,0.00014795,2]
[400441073,1767555047760,-1500.0,0.00014795,2]
[400441074,1767555047770,-1500.0,0.00014795,2]
[400441075,1767555047780,-260.481866,0.00014916,2]
[400441076,1767555047789,-260.481866,0.00014916,2]
[400441077,1767555047798,-260.481866,0.00014916,2]
[400441078,1767555047807,-260.481866,0.00014916,2]
[400441079,1767555047818,-151.0,0.00014916,2]
[400441080,1767555047828,-151.0,0.00014916,2]
[400441081,1767555047838,-1000.0,0.00014916,2]
[400441082,1767555047848,-2000.0,0.00014916,2]
[400441083,1767555047858,-2000.0,0.00014916,2]
[400441084,1767555047868,-4997.5,0.00015,2]
[400441085,1767555047877,-175.717707,0.00015068,2]
[400441086,1767555047887,-151.0,0.000152,2]
[400441087,1767555047897,-206.57119576,0.00015278,2]
[400441088,1767555047906,-151.0,0.00015342,2]
[400441089,1767555047915,-151.0,0.00015342,2]
[400441090,1767555047926,-2000.0,0.00015342,2]
[400441091,1767555047936,-1645.90148629,0.00015342,2]
[400441092,1767555060764,168.52,6.714e-05,2]
[400441093,1767555061210,252.79,7.019e-05,2]
[400441094,1767555061635,337.05,7.325e-05,2]
[400441095,1767555062049,421.31,7.63e-05,2]
[400441096,1767555062469,505.57,7.935e-05,2]
[400441097,1767555062865,589.84,8.24e-05,2]
[400441098,1767555063285,674.1,8.545e-05,2]
[400441099,1767555063715,758.36,8.851e-05,2]
[400441100,1767555064134,842.62,9.156e-05,2]
[400441120,1767555096984,10000.01,9.595e-05,2]
[400441139,1767555134263,190.44,7.909e-05,2]
[400441140,1767555134696,238.05,8.238e-05,2]
[400441141,1767555135196,285.66,8.568e-05,2]
[400441142,1767555135525,333.28,8.897e-05,2]
[400441143,1767555135972,380.89,9.227e-05,2]
[400441144,1767555141044,198.09035797,9.403e-05,2]
[400441193,1767555204944,176.59,8.011e-05,2]
[400441194,1767555205336,206.03,8.319e-05,2]
[400441195,1767555205745,235.46,8.627e-05,2]
[400441196,1767555206153,264.89,8.935e-05,2]
[400441197,1767555206557,294.32,9.243e-05,2]
[400441201,1767555260617,5000.0,9.516e-05,2]
[400441202,1767555284163,3822.72,9.516e-05,2]
[400441242,1767555479764,363.28,2.997e-05,2]
[400441243,1767555480060,363.28,2.997e-05,2]
[400441244,1767555484072,1358.93677617,9.446e-05,2]
[400441246,1767555573216,826.35172325,9.392e-05,2]
[400441309,1767555867325,159.94,8.461e-05,2]
[400441310,1767555867710,179.93,8.763e-05,2]
[400441311,1767555868105,180.9697799,9.065e-05,2]
[400441358,1767555912223,-554.0,9.593e-05,2]
[400441359,1767555912251,-300.0,9.593e-05,2]
[400441360,1767555912281,-300.0,9.593e-05,2]
[400441361,1767555912310,-300.0,9.593e-05,2]
[400441362,1767555912340,-300.0,9.593e-05,2]
[400441363,1767555947425,10000.01,8.866e-05,2]
[400441364,1767555947447,10000.01,8.866e-05,2]
[400441365,1767555947480,10000.01,8.866e-05,2]
[400441366,1767555947506,10000.01,8.866e-05,2]
[400441367,1767555947529,10000.01,8.866e-05,2]
[400441368,1767555947552,10000.01,8.866e-05,2]
[400441369,1767555947577,3423.8640922,8.866e-05,2]
[400441370,1767555962222,300.0,9.593e-05,2]
[400441371,1767555981258,5000.0,9.594e-05,2]
[400441372,1767556004047,5000.0,9.414e-05,2]
[400441377,1767556027376,5000.0,9.414e-05,2]
[400441380,1767556050184,0.01,9.414e-05,2]
[400441381,1767556050205,4999.99,9.414e-05,2]
[400441382,1767556050683,4614.7264092,8.717e-05,2]
[400441391,1767556072990,385.2935908,9.414e-05,2]
[400441392,1767556073017,629.36310179,9.414e-05,2]
[400441393,1767556088776,5000.0,9.414e-05,2]
[400441418,1767556111748,1752.07043021,9.442e-05,2]
[400441422,1767556132988,152.16,8.368e-05,2]
[400441423,1767556133533,171.17,8.667e-05,2]
[400441433,1767556226409,-300.0,9.494e-05,2]
[400441446,1767556231658,-174694.24908971,9.495e-05,2]
[400441447,1767556231669,-1016.72874072,9.495e-05,2]
[400441448,1767556231714,-2000.0,9.495e-05,2]
[400441449,1767556231769,-7010.34294159,9.495e-05,2]
[400441450,1767556231779,-885.70451054,9.495e-05,2]
[400441458,1767556238040,-16969.58790278,9.495e-05,2]
[400441459,1767556238050,-553.0,9.495e-05,2]
[400441460,1767556238064,-1200.0,9.592e-05,2]
[400441461,1767556238073,-292.90984792,9.594e-05,2]
[400441462,1767556238083,-300.0,9.786e-05,2]
[400441463,1767556238092,-300.0,9.786e-05,2]
[400441464,1767556238107,-300.0,9.786e-05,2]
[400441465,1767556238119,-300.0,9.786e-05,2]
[400441466,1767556238130,-300.0,9.786e-05,2]
[400441467,1767556238140,-300.0,9.786e-05,2]
[400441468,1767556238150,-300.0,9.786e-05,2]
[400441469,1767556238160,-300.0,9.786e-05,2]
[400441470,1767556238170,-300.0,9.786e-05,2]
[400441471,1767556238181,-300.0,9.786e-05,2]
[400441472,1767556238192,-300.0,9.786e-05,2]
[400441473,1767556238202,-300.0,9.786e-05,2]
[400441474,1767556238213,-300.0,9.786e-05,2]
[400441475,1767556238223,-300.0,9.786e-05,2]
[400441476,1767556238232,-300.0,9.786e-05,2]
[400441477,1767556238243,-22.47250584,9.786e-05,2]
[400441478,1767556238260,-577.52749416,9.786e-05,2]
[400441479,1767556238271,-989.77502938,9.786e-05,2]
[400441480,1767556238281,-6488.88823997,9.786e-05,2]
[400441481,1767556238293,-890.79079948,9.786e-05,2]
[400441505,1767556239996,-1437.29746005,9.786e-05,2]
[400441507,1767556240008,-41183.0235005,9.786e-05,2]
[400441509,1767556240018,-1656.25297393,9.795e-05,2]
[400441511,1767556240030,-500.56240568,0.0001,2]
[400441513,1767556240039,-420.0,0.00010443,2]
[400441515,1767556240049,-720.0,0.00010764,2]
[400441517,1767556240059,-999.0,0.00010959,2]
[400441519,1767556240068,-3162.50594786,0.00011058,2]
[400441521,1767556240077,-250.0,0.00011261,2]
[400441523,1767556240086,-250.0,0.00011261,2]
[400441525,1767556240095,-250.0,0.00011261,2]
[400441527,1767556240105,-250.0,0.00011261,2]
[400441529,1767556240113,-250.0,0.00011261,2]
[400441531,1767556240122,-250.0,0.00011261,2]
[400441532,1767556240131,-250.0,0.00011261,2]
[400441534,1767556240140,-250.0,0.00011261,2]
[400441536,1767556240150,-250.0,0.00011261,2]
[400441538,1767556240159,-250.0,0.00011261,2]
[400441540,1767556240170,-250.0,0.00011261,2]
[400441543,1767556240180,-250.0,0.00011261,2]
[400441545,1767556240190,-587.0,0.00011487,2]
[400441547,1767556240199,-989.77502935,0.00011551,2]
[400441549,1767556240209,-345.63362054,0.00011594,2]
[400441551,1767556240219,-864.0,0.00011841,2]
[400441553,1767556240228,-239.688,0.00012433,2]
[400441555,1767556240237,-4668.75892179,0.00012523,2]
[400441557,1767556240247,-823.0,0.00012636,2]
[400441559,1767556240256,-3603.43269606,0.000129,2]
[400441560,1767556240266,-1000.0,0.00013025,2]
[400441562,1767556240276,-1041.66666667,0.00013269,2]
[400441564,1767556240285,-500.0,0.00013273,2]
[400441566,1767556240294,-500.0,0.00013273,2]
[400441568,1767556240303,-500.0,0.00013273,2]
[400441570,1767556240312,-500.0,0.00013273,2]
[400441572,1767556240321,-3603.43269599,0.00013313,2]
[400441574,1767556240331,-989.77502935,0.00013416,2]
[400441576,1767556240340,-398.36,0.00013493,2]
[400441579,1767556240354,-185.28,0.00013493,2]
[400441580,1767556240366,-185.28,0.00013493,2]
[400441582,1767556240375,-185.28,0.00013493,2]
[400441584,1767556240384,-185.28,0.00013493,2]
[400441586,1767556240393,-185.28,0.00013493,2]
[400441588,1767556240405,-185.28,0.00013493,2]
[400441591,1767556240422,-185.27,0.00013493,2]
[400441593,1767556240433,-398.35739317,0.00013594,2]
[400441595,1767556240442,-731.33,0.00013698,2]